bitfinex-derivatives/quotes_ETHF0:USTF0_20260308
["timestamp","ask_amount","ask_price","bid_price","bid_amount"]
[1772989519248,0.92367613,1945.6,1944.9,0.50042331]
[1772989519446,0.92367613,1945.5,1944.8,0.49987947]
[1772989519847,3.49647613,1945.2,1944.8,0.49987947]
[1772989520151,0.92367613,1945.6,1944.8,0.49987947]
[1772989520351,2.5728,1945.4,1944.8,0.49987947]
[1772989520547,3.49647613,1945.4,1944.8,0.49987947]
[1772989520752,0.92367613,1945.8,1944.8,0.49987947]
[1772989520948,0.92367613,1945.7,1944.8,0.49987947]
[1772989521154,7.65867613,1945.9,1944.8,0.49987947]
[1772989521349,0.92367613,1945.8,1944.9,0.50015027]
[1772989521754,0.92367613,1945.8,1944.8,0.49362043]
[1772989521954,0.92367613,1945.4,1944.8,0.49362043]
[1772989522357,6.99196,1945.9,1944.8,0.49362043]
[1772989522358,0.92367613,1945.8,1944.8,0.49362043]
[1772989522557,0.92367613,1945.8,1944.9,0.10008765]
[1772989522753,0.92367613,1945.8,1945.0,0.10008765]
[1772989522953,3.1107936,1945.8,1945.0,0.10008765]
[1772989523252,0.92367613,1945.8,1945.0,0.10008765]
[1772989523554,2.18711747,1945.7,1945.0,0.10008765]
[1772989524057,2.18711747,1945.6,1945.0,0.10008765]
[1772989524253,0.92367613,1945.8,1945.0,0.10008765]
[1772989524453,2.18711747,1945.7,1945.0,0.10008765]
[1772989524856,2.18711747,1945.6,1945.0,0.10008765]
[1772989525258,0.92367613,1945.7,1945.0,0.10008765]
[1772989525458,2.18711747,1945.6,1945.0,0.10008765]
[1772989525658,6.734,1945.9,1945.0,0.10008765]
[1772989525859,0.92367613,1945.6,1945.0,0.10008765]
[1772989526160,0.92367613,1945.6,1944.8,23.48411177]
[1772989526360,2.18711747,1945.4,1944.8,12.71672707]
[1772989526559,3.1107936,1945.4,1944.9,0.10193333]
[1772989526762,0.92367613,1945.4,1944.9,0.10193333]
[1772989526963,2.18711747,1945.0,1944.7,0.10193333]
[1772989527165,0.92367613,1945.2,1944.7,0.10193333]
[1772989527662,2.18711747,1945.0,1944.7,0.10193333]
[1772989528061,2.18711747,1944.9,1944.7,0.10193333]
[1772989528361,0.92367613,1945.2,1944.7,0.10193333]
[1772989529062,2.18203724,1944.9,1944.7,0.10193333]
[1772989529265,0.92367613,1945.2,1944.7,10.86931803]
[1772989529456,0.92367613,1945.2,1944.8,0.0508567]
[1772989529655,1.6254403,1944.9,1944.8,0.0508567]
[1772989530260,1.6254403,1944.9,1944.7,10.7673847]
[1772989530463,1.6254403,1944.8,1944.7,10.7673847]
[1772989530664,0.92367613,1945.2,1944.3,0.40916276]
[1772989530859,0.92367613,1944.9,1944.3,0.40916276]
[1772989531257,0.92367613,1944.9,1944.1,0.41681787]
[1772989531457,0.92367613,1944.6,1944.1,0.41681787]
[1772989531966,1.47432761,1944.4,1944.1,0.41681787]
[1772989532167,7.65767613,1944.8,1944.1,0.41681787]
[1772989532368,0.68583794,1944.5,1944.1,0.41681787]
[1772989532966,0.68583794,1944.3,1944.1,0.41681787]
[1772989533166,0.94779221,1944.7,1944.1,0.41681787]
[1772989533666,0.68583794,1944.4,1944.1,0.41681787]
[1772989534166,0.94779221,1944.7,1944.1,0.41681787]
[1772989534559,0.68583794,1944.4,1944.1,0.41681787]
[1772989534963,0.68583794,1944.2,1944.1,0.41681787]
[1772989535167,0.94779221,1944.7,1944.1,0.41681787]
[1772989535570,0.48602414,1944.4,1944.1,0.41681787]
[1772989535970,0.94779221,1944.7,1944.1,0.41681787]
[1772989536472,0.94779221,1944.7,1943.9,14.1710142]
[1772989536673,0.94779221,1944.4,1943.8,13.42574251]
[1772989537074,0.48602414,1943.9,1943.8,0.75362713]
[1772989537269,0.94779221,1944.3,1943.8,0.00417772]
[1772989537469,0.94779221,1944.3,1943.8,0.7501994]
[1772989537676,0.05700212,1943.9,1943.8,0.7501994]
[1772989538267,0.94779221,1944.3,1943.8,0.7501994]
[1772989538472,0.94779221,1944.8,1944.0,0.30893236]
[1772989540075,0.94779221,1944.8,1943.8,13.42574251]
[1772989540279,0.94779221,1944.8,1943.8,0.34693701]
[1772989540476,0.94779221,1944.6,1943.8,0.34693701]
[1772989540677,0.94779221,1944.6,1943.9,10.68226007]
[1772989541279,0.94779221,1944.5,1943.9,10.68226007]
[1772989541479,0.94779221,1944.5,1943.9,10.97058521]
[1772989541672,0.94779221,1944.5,1943.8,10.68643779]
[1772989543677,0.94779221,1944.5,1943.8,0.00417772]
[1772989543877,0.94779221,1944.3,1943.4,9.91999749]
[1772989544082,0.94779221,1944.1,1943.4,9.91999749]
[1772989544281,0.94779221,1943.9,1943.3,0.27620025]
[1772989544883,0.95210886,1943.9,1943.3,0.28103581]
[1772989545084,0.95210886,1943.9,1943.3,0.00483556]
[1772989547780,6.736,1943.8,1943.3,0.00483556]
[1772989547979,0.94779221,1943.7,1943.3,0.00483556]
[1772989548483,0.94779221,1943.7,1943.1,0.73297022]
[1772989549483,0.94779221,1943.5,1943.1,0.73694674]
[1772989549681,0.94779221,1943.5,1943.1,0.00397652]
[1772989549985,0.94779221,1943.5,1943.1,0.71906702]
[1772989550395,0.00111263,1943.6,1943.1,0.71906702]
[1772989550585,0.00431665,1943.9,1943.1,0.71906702]
[1772989551582,0.00431665,1943.9,1943.3,0.6962007]
[1772989553388,0.95210886,1943.9,1943.3,0.6962007]
[1772989553792,0.95210886,1943.9,1943.1,0.56711712]
[1772989553994,0.95210886,1943.9,1943.2,10.65863389]
[1772989554189,0.94779221,1943.7,1943.2,10.65863389]
[1772989554489,0.94779221,1943.7,1943.1,11.22575101]
[1772989554885,0.94779221,1943.7,1943.1,0.00397652]
[1772989556696,0.94779221,1943.7,1943.1,0.52615229]
[1772989558388,0.94779221,1943.6,1943.1,0.52615229]
[1772989558588,0.94779221,1943.6,1943.1,0.00397652]
[1772989559796,0.94779221,1943.6,1943.1,0.50390057]
[1772989560096,0.94779221,1943.6,1943.1,0.00397652]
[1772989561391,0.94779221,1943.5,1943.1,0.00397652]
[1772989561592,0.94779221,1943.5,1942.9,10.65863389]
[1772989562498,7.68579221,1943.4,1943.0,0.48157605]
[1772989563594,1.0043417,1943.7,1943.0,0.48157605]
[1772989566907,1.0043417,1943.7,1942.9,10.66235297]
[1772989567608,1.0043417,1943.7,1942.9,0.00371908]
[1772989568508,6.99624,1943.8,1942.4,0.42720885]
[1772989568509,0.99301877,1943.3,1942.4,0.42720885]
[1772989568702,6.99632,1943.2,1942.4,0.42720885]
[1772989568902,0.00431665,1943.9,1941.5,40.37568156]
[1772989568903,0.25734,1943.0,1942.2,1.02672144]
[1772989569307,6.739,1942.9,1942.2,1.02672144]
[1772989569506,6.739,1942.9,1942.2,1.03271465]
[1772989569709,7.14565978,1942.9,1942.2,1.03271465]
[1772989571008,0.40665978,1942.9,1942.2,1.03271465]
[1772989571213,7.14665978,1942.9,1942.2,1.03271465]
[1772989572009,0.33112007,1942.8,1942.2,1.03271465]
[1772989572309,6.74,1942.9,1942.2,1.03271465]
[1772989572508,0.32719573,1942.8,1942.2,1.03271465]
[1772989575209,6.74,1942.9,1942.2,1.03271465]
[1772989575409,0.58859666,1943.0,1942.2,1.03271465]
[1772989575608,6.741,1942.9,1942.2,1.03271465]
[1772989576308,7.0682944,1942.9,1942.2,1.03271465]
[1772989578612,0.31462296,1942.8,1942.2,1.03271465]
[1772989579311,0.31462296,1942.8,1942.1,9.64832006]
[1772989579613,0.25734,1943.0,1942.0,1.20092343]
[1772989579815,6.741,1942.7,1942.0,1.20092343]
[1772989580211,0.25734,1943.0,1942.0,1.20092343]
[1772989580409,6.741,1942.9,1942.0,1.20726341]
[1772989582519,0.07375574,1943.5,1942.2,1.19185527]
[1772989582714,0.07375574,1943.3,1942.2,1.19185527]
[1772989583214,0.07375574,1943.1,1942.2,1.19185527]
[1772989583415,6.82140832,1943.0,1942.2,1.19185527]
[1772989585513,6.742,1943.0,1942.2,1.19185527]
[1772989585815,0.11609127,1943.4,1942.3,1.16345967]
[1772989586017,6.85809127,1943.3,1942.3,1.16345967]
[1772989586316,0.11609127,1943.2,1942.3,1.16345967]
[1772989589521,0.11609127,1943.2,1942.4,11.87066175]
[1772989592515,0.11609127,1943.2,1942.5,10.72390533]
[1772989592712,0.11609127,1943.2,1942.5,11.89313107]
[1772989592913,0.11609127,1943.2,1942.6,1.16922574]
[1772989593323,0.11704788,1943.0,1942.6,1.16922574]
[1772989593519,0.11836888,1943.8,1942.7,1.16922574]
[1772989593724,0.11836888,1943.6,1942.7,1.16922574]
[1772989594824,0.11314731,1943.4,1942.7,1.16922574]
[1772989595024,6.85514731,1943.3,1942.7,1.16922574]
[1772989596125,6.742,1943.3,1942.8,1.16922574]
[1772989596326,0.11716031,1943.3,1942.8,1.16922574]
[1772989598423,6.85916031,1943.3,1942.8,1.16922574]
[1772989599028,0.10114288,1943.2,1942.7,11.89313107]
[1772989599226,0.10114288,1943.2,1942.8,1.16922574]
[1772989600033,0.75,1943.8,1942.9,1.16922574]
[1772989600229,7.57682005,1943.8,1943.0,1.16922574]
[1772989600422,0.08543453,1943.7,1943.0,1.16922574]
[1772989600930,0.75,1943.8,1943.0,1.16922574]
[1772989601133,6.82149387,1943.7,1943.0,1.16922574]
[1772989601331,7.491,1943.8,1943.0,1.16922574]
[1772989601534,7.57140815,1943.8,1943.0,1.16922574]
[1772989601730,0.08040815,1943.7,1943.0,1.16922574]
[1772989604236,6.741,1943.7,1943.0,1.16922574]
[1772989605435,6.741,1943.7,1943.0,11.89313107]
[1772989605633,6.741,1943.7,1943.1,1.16922574]
[1772989607834,0.79915328,1943.8,1943.1,1.16922574]
[1772989608037,6.741,1943.7,1943.1,1.16922574]
[1772989608237,0.75,1943.8,1943.2,1.16922574]
[1772989608534,0.75,1943.8,1943.4,1.16922574]
[1772989608835,0.75,1943.8,1943.4,1.17327681]
[1772989609036,0.79480691,1943.8,1943.4,1.17327681]
[1772989609637,0.75,1943.8,1943.4,1.17327681]
[1772989609838,0.79015933,1943.8,1943.4,1.17327681]
[1772989610831,0.79015933,1943.8,1943.2,10.72390533]
[1772989610832,0.03581294,1943.7,1943.2,11.89313107]
[1772989611037,0.03581294,1943.7,1943.3,1.16922574]
[1772989611238,0.03581294,1943.7,1943.2,1.16922574]
[1772989611628,0.03581294,1943.7,1943.1,1.16922574]
[1772989612033,0.03581294,1943.7,1943.1,1.1754412]
[1772989615437,6.74,1943.7,1943.1,1.1754412]
[1772989617339,0.75,1943.8,1943.1,1.1754412]
[1772989617548,6.74,1943.7,1943.1,1.1754412]
[1772989618237,6.74,1943.7,1943.2,1.16922574]
[1772989618637,0.75,1943.8,1943.2,1.16922574]
[1772989618844,7.49,1943.8,1943.2,1.16922574]
[1772989619044,0.00431665,1943.9,1943.4,1.16922574]
[1772989622148,0.25721,1944.1,1943.4,1.16922574]
[1772989622341,0.48221639,1944.4,1943.5,10.72390533]
[1772989622541,0.47743523,1944.5,1943.7,11.89313107]
[1772989622746,0.47743523,1944.5,1943.8,1.10017754]
[1772989623145,0.48215856,1944.5,1943.8,1.10017754]
[1772989623342,0.00472333,1944.5,1943.8,1.10017754]
[1772989623549,7.29639147,1944.5,1943.8,1.10017754]
[1772989623751,0.55166814,1944.4,1943.8,1.10017754]
[1772989624244,0.55639147,1944.5,1943.8,1.10017754]
[1772989624445,0.55146573,1944.4,1943.8,1.10017754]
[1772989625648,7.29046573,1944.4,1943.8,1.10017754]
[1772989626248,0.53935187,1944.3,1943.8,1.10017754]
[1772989626550,6.739,1944.4,1943.8,1.10017754]
[1772989626749,7.27333334,1944.4,1943.8,1.10017754]
[1772989626949,0.53433334,1944.3,1943.8,1.10017754]
[1772989627745,6.739,1944.4,1943.8,1.10017754]
[1772989627951,7.25837717,1944.4,1943.8,1.10017754]
[1772989628151,0.51937717,1944.3,1943.8,1.10017754]
[1772989628856,0.51937717,1944.3,1943.6,1.15073182]
[1772989632258,6.738,1944.2,1943.6,1.15073182]
[1772989632456,6.738,1944.2,1943.6,11.87463715]
[1772989632659,6.738,1944.2,1943.7,1.15073182]
[1772989634963,7.22254378,1944.2,1943.7,1.15073182]
[1772989635963,0.4802409,1944.1,1943.7,1.15073182]
[1772989637362,6.738,1944.2,1943.7,1.15073182]
[1772989638665,7.20413631,1944.2,1943.7,1.15073182]
[1772989638966,0.46613631,1944.1,1943.7,1.15073182]
[1772989639166,0.46613631,1944.2,1943.7,1.15073182]
[1772989642073,0.46820652,1944.5,1943.8,1.15073182]
[1772989642369,6.738,1944.4,1943.8,1.15073182]
[1772989642664,7.19717161,1944.4,1943.8,1.15073182]
[1772989645769,0.44386421,1944.3,1943.8,1.15073182]
[1772989647473,0.43556634,1944.4,1943.8,1.15073182]
[1772989647673,6.738,1944.3,1943.9,1.15073182]
[1772989648274,6.738,1944.4,1943.9,1.15073182]
[1772989648675,7.16927511,1944.4,1943.9,1.15073182]
[1772989650176,0.43127511,1944.4,1943.9,1.15073182]
[1772989650377,7.16927511,1944.4,1943.9,1.15073182]
[1772989650978,7.16927511,1944.4,1943.9,11.87463715]
[1772989651175,7.16927511,1944.4,1944.0,1.15073182]
[1772989651372,0.00472333,1944.5,1944.0,1.15073182]
[1772989651583,0.00472333,1944.5,1944.0,11.87463715]
[1772989651879,0.00472333,1944.5,1944.1,1.15073182]
[1772989652074,0.42419711,1944.6,1944.1,1.15073182]
[1772989652382,6.738,1944.8,1944.3,1.15073182]
[1772989652779,7.15387727,1944.8,1944.3,1.15073182]
[1772989653079,7.15962744,1944.8,1944.3,1.15073182]
[1772989653677,0.00575017,1944.8,1944.3,11.87463715]
[1772989653981,0.00575017,1944.8,1944.4,1.07309276]
[1772989654381,7.1409792,1945.0,1944.4,1.07309276]
[1772989654777,0.39804895,1944.9,1944.4,1.07309276]
[1772989655378,0.40285515,1944.9,1944.4,1.07309276]
[1772989656585,0.40285515,1944.9,1944.3,1.07309276]
[1772989657789,0.38162466,1944.7,1944.1,11.79699809]
[1772989658078,0.38162466,1944.5,1944.0,1.07309276]
[1772989659184,0.37737695,1944.8,1944.0,1.07309276]
[1772989659384,7.11437695,1944.8,1944.0,11.79699809]
[1772989659587,7.11437695,1944.8,1944.1,1.07309276]
[1772989660185,0.3594035,1944.7,1944.1,1.07309276]
[1772989661489,0.3594035,1944.7,1944.1,11.79699809]
[1772989661684,0.3594035,1944.7,1944.1,1.07309276]
[1772989662090,7.08215513,1944.8,1944.1,1.07309276]
[1772989662291,7.08271681,1944.7,1944.2,1.07309276]
[1772989662691,0.3409756,1944.6,1944.2,1.07309276]
[1772989663691,0.33520375,1944.6,1944.2,1.07309276]
[1772989664090,6.737,1944.6,1944.2,1.07309276]
[1772989665296,0.33103045,1944.5,1944.2,1.07309276]
[1772989666690,0.33103045,1944.5,1944.0,10.72390533]
[1772989666898,0.33103045,1944.5,1943.9,1.07309276]
[1772989667096,0.32456262,1944.3,1943.9,1.07309276]
[1772989667492,7.05824808,1944.4,1943.9,1.07309276]
[1772989668793,0.31709453,1944.6,1943.9,1.07309276]
[1772989668999,6.737,1944.5,1944.0,1.07309276]
[1772989670299,7.04833309,1944.5,1944.0,1.07309276]
[1772989670497,0.30663733,1944.4,1944.0,1.07309276]
[1772989671097,0.56376733,1944.7,1944.0,1.07309276]
[1772989671297,7.04363733,1944.6,1944.0,1.07309276]
[1772989671499,0.29996359,1944.5,1944.0,1.07309276]
[1772989673707,0.29996359,1944.5,1944.0,11.79699809]
[1772989674308,0.29996359,1944.5,1943.9,10.72390533]
[1772989675011,0.25713,1944.7,1944.0,1.07309276]
[1772989675012,0.54303059,1944.7,1944.0,1.07309276]
[1772989675203,0.28590059,1944.5,1944.0,1.07309276]
[1772989675509,0.28590059,1944.5,1943.9,10.72390533]
[1772989675708,0.28590059,1944.5,1943.9,11.79699809]
[1772989676109,0.28590059,1944.5,1943.9,10.72390533]
[1772989676712,0.25631085,1944.3,1943.8,10.72390533]
[1772989677011,0.25631085,1944.3,1943.8,1.07309276]
[1772989677208,6.99331085,1944.2,1943.8,1.07309276]
[1772989678011,0.25863317,1944.1,1943.8,1.07309276]
[1772989678212,0.01328157,1944.1,1943.8,1.07309276]
[1772989678408,0.01328157,1944.1,1943.7,10.72390533]
[1772989678612,0.01328157,1944.1,1943.7,1.07309276]
[1772989681615,0.01328157,1944.1,1943.6,11.79699809]
[1772989681817,0.01328157,1944.1,1943.3,13.42156479]
[1772989681818,0.02103531,1943.9,1943.4,10.77320599]
[1772989682017,0.25721,1944.0,1943.4,1.07309276]
[1772989682018,6.737,1943.8,1943.4,1.07309276]
[1772989682316,0.05688972,1943.7,1943.2,1.07309276]
[1772989684320,0.05688972,1943.7,1943.1,1.01466579]
[1772989684718,6.737,1943.8,1943.1,1.01466579]
[1772989685020,0.12146625,1943.9,1943.1,1.01466579]
[1772989685214,6.85490473,1943.8,1943.1,1.01466579]
[1772989686623,0.08821366,1943.7,1943.1,1.01466579]
[1772989688220,0.08340779,1943.5,1943.1,1.01466579]
[1772989688423,6.82203364,1943.4,1943.1,1.00891562]
[1772989688825,6.81732806,1943.4,1943.0,1.02287097]
[1772989689518,0.07338581,1943.3,1942.3,1.02287097]
[1772989689823,0.07338581,1943.3,1942.3,1.02669395]
[1772989690124,0.07338581,1943.3,1942.4,1.02287097]
[1772989692026,6.80333448,1943.4,1942.4,1.02287097]
[1772989692728,0.0609131,1943.3,1942.4,1.02287097]
[1772989694821,0.0063934,1943.5,1942.4,1.02287097]
[1772989695027,6.7463934,1943.5,1942.4,1.02287097]
[1772989695927,6.74,1943.9,1942.6,1.02287097]
[1772989696122,6.74,1943.8,1942.8,1.02287097]
[1772989696326,0.04615128,1944.0,1942.8,1.02287097]
[1772989696530,0.04615128,1944.0,1942.9,1.02287097]
[1772989696824,0.04987611,1944.0,1942.9,1.02287097]
[1772989697031,6.74372483,1944.0,1942.9,1.02287097]
[1772989697325,0.00372483,1944.0,1942.9,1.02287097]
[1772989697525,0.00372483,1944.0,1943.0,1.02287097]
[1772989697727,0.00372483,1944.0,1943.0,14.44443576]
[1772989697926,0.00372483,1944.0,1943.1,1.02287097]
[1772989698636,0.00372483,1944.0,1943.3,1.02287097]
[1772989699128,0.03468605,1944.0,1943.3,1.02287097]
[1772989699324,0.00372483,1944.0,1943.3,1.02287097]
[1772989701336,0.06004013,1944.0,1943.3,1.02287097]
[1772989704027,0.06004013,1944.0,1942.7,13.42156479]
[1772989704330,0.06004013,1944.0,1942.8,1.02287097]
[1772989704331,0.04807939,1943.8,1942.8,1.02287097]
[1772989704536,0.04370677,1943.6,1942.8,1.02287097]
[1772989704839,6.33033765,1943.6,1942.8,1.02287097]
[1772989705735,6.77249793,1943.6,1942.8,1.02287097]
[1772989708141,0.45798837,1943.5,1942.8,1.02287097]
[1772989709138,7.19798837,1943.5,1942.8,1.02287097]
[1772989709645,0.44934532,1943.4,1942.8,1.02287097]
[1772989711847,0.44934532,1943.4,1942.7,1.02287097]
[1772989712251,0.2573,1943.3,1942.7,1.02287097]
[1772989712445,6.74,1943.2,1942.7,1.02287097]
[1772989712645,6.74,1943.3,1942.7,1.02287097]
[1772989714151,0.43212918,1943.7,1942.7,1.02287097]
[1772989714346,7.17212918,1943.6,1942.7,1.02287097]
[1772989714543,0.68461846,1943.8,1942.7,1.02287097]
[1772989714748,7.16737846,1943.7,1942.7,14.44443576]
[1772989714948,7.16737846,1943.7,1942.8,0.92071509]
[1772989715351,0.42737846,1943.6,1942.8,0.92071509]
[1772989721358,7.16737846,1943.6,1942.8,0.92071509]
[1772989722256,7.16737846,1943.6,1942.9,0.92071509]
[1772989722457,0.40316578,1943.5,1942.9,0.92071509]
[1772989723257,0.02008854,1943.5,1942.9,0.92071509]
[1772989723953,0.02008854,1943.5,1943.0,0.97923979]
[1772989724956,6.77375996,1943.6,1943.0,0.97923979]
[1772989725764,0.02577629,1943.5,1943.0,0.97923979]
[1772989727461,6.74,1943.6,1943.0,0.97923979]
[1772989727762,6.76398147,1943.6,1943.0,0.97923979]
[1772989728665,0.02015533,1943.5,1943.0,0.97923979]
[1772989730259,0.02015533,1943.5,1943.1,0.97505779]
[1772989730859,6.74,1943.6,1943.1,0.97505779]
[1772989731164,6.75546813,1943.6,1943.1,0.97505779]
[1772989731457,0.01442008,1943.5,1943.1,0.97505779]
[1772989731660,6.75442008,1943.6,1943.1,0.97505779]
[1772989732852,0.01060523,1943.5,1943.1,0.97505779]
[1772989733056,5.91477083,1943.6,1943.1,0.97505779]
[1772989733254,5.91641617,1943.6,1943.1,0.97505779]
[1772989734256,5.91477083,1943.6,1943.1,0.97505779]
[1772989734461,0.05192353,1943.5,1943.1,0.97505779]
[1772989734964,5.96669436,1943.6,1943.1,0.97505779]
[1772989735268,5.91477083,1943.6,1943.1,0.97505779]
[1772989735566,5.96108822,1943.6,1943.1,0.97505779]
[1772989736569,0.03787043,1943.5,1943.1,0.97505779]
[1772989737365,5.95290365,1943.6,1943.1,0.97505779]
[1772989739370,6.74,1943.5,1943.1,0.97505779]
[1772989742374,6.75746658,1943.5,1943.1,0.97505779]
[1772989743169,0.00810763,1943.4,1942.9,14.40056232]
[1772989743369,0.00810763,1943.3,1942.8,14.40056232]
[1772989743569,0.02589611,1943.1,1942.8,0.97899753]
[1772989744175,0.02589611,1943.1,1942.6,13.42156479]
[1772989744176,0.02589611,1943.1,1942.7,0.97050496]
[1772989744674,6.74,1943.1,1942.7,0.97050496]
[1772989745278,6.75707846,1943.1,1942.7,0.97050496]
[1772989745775,6.74,1943.1,1942.7,0.97050496]
[1772989747379,6.76794707,1943.1,1942.7,0.97050496]
[1772989747675,0.02100561,1943.3,1942.7,0.97050496]
[1772989747877,6.76200561,1943.2,1942.7,0.97050496]
[1772989748678,6.741,1943.5,1943.2,0.96434177]
[1772989748974,0.01706513,1943.4,1943.1,0.96434177]
[1772989749179,6.75806513,1943.4,1943.1,0.96434177]
[1772989749673,6.75806513,1943.4,1942.7,13.42156479]
[1772989749674,0.0124711,1943.8,1943.4,0.96444771]
[1772989749876,0.0124711,1943.9,1943.4,0.96444771]
[1772989750076,3.42944866,1944.3,1943.4,0.96444771]
[1772989750077,6.7534711,1943.8,1943.4,0.96444771]
[1772989751177,0.00854695,1944.1,1943.4,0.96444771]
[1772989751382,6.741,1943.9,1943.4,0.96444771]
[1772989751682,0.01227178,1944.0,1943.6,0.96249404]
[1772989751683,0.00372483,1944.0,1943.6,0.96249404]
[1772989751882,6.74472483,1944.0,1943.6,0.96249404]
[1772989753379,0.00372483,1944.0,1943.6,0.96249404]
[1772989753586,6.74,1944.1,1943.6,0.96249404]
[1772989754486,6.7459594,1944.1,1943.6,0.96249404]
[1772989755186,6.76982977,1944.1,1943.6,0.96249404]
[1772989756688,6.7459594,1944.1,1943.6,0.96249404]
[1772989757479,0.0059594,1944.1,1943.6,0.96249404]
[1772989757683,6.7459594,1944.1,1943.6,0.96249404]
[1772989761184,0.0059594,1944.1,1943.6,0.96249404]
[1772989761385,6.7449594,1944.1,1943.6,0.96249404]
[1772989764586,0.0059594,1944.1,1943.6,0.96249404]
[1772989764891,6.7449594,1944.1,1943.6,0.96249404]
[1772989765086,0.0059594,1944.1,1943.8,0.94795409]
[1772989765290,0.0059594,1944.1,1943.8,0.9532157]
[1772989768593,8.10971421,1944.3,1943.8,0.9532157]
[1772989769694,8.11255219,1944.3,1943.8,0.9532157]
[1772989770887,1.37355219,1944.3,1943.8,0.9532157]
[1772989774898,1.37355219,1944.3,1943.8,0.00526161]
[1772989775196,1.37355219,1944.3,1943.8,0.95455087]
[1772989779796,6.738,1944.2,1943.8,0.95455087]
[1772989780698,6.738,1944.2,1943.8,0.00526161]
[1772989780898,6.738,1944.2,1943.8,0.94331314]
[1772989781496,6.738,1944.2,1943.8,0.9426629]
[1772989782612,0.2572,1944.1,1943.3,14.3587974]
[1772989782904,0.2572,1944.1,1943.3,0.93723261]
[1772989783605,0.02500206,1944.0,1943.3,0.94327129]
[1772989783799,0.02500206,1943.8,1943.3,0.00603868]
[1772989784201,0.01896338,1943.6,1943.0,14.36517777]
[1772989784395,0.01896338,1943.4,1942.8,0.94663232]
[1772989785405,0.01896338,1943.4,1942.8,0.95316804]
[1772989786005,0.01896338,1943.4,1942.8,0.00653572]
[1772989786205,0.01896338,1943.4,1942.8,0.96227628]
[1772989788306,6.739,1943.3,1942.8,0.96227628]
[1772989788506,6.739,1943.2,1942.8,0.96227628]
[1772989789502,6.739,1943.2,1942.8,0.96975145]
[1772989792202,6.739,1943.2,1942.8,0.00653572]
[1772989794115,6.74,1943.2,1942.8,0.9877249]
[1772989795115,0.25725,1943.7,1942.8,0.9877249]
[1772989795322,6.74,1943.6,1942.8,0.9877249]
[1772989796010,6.74,1943.5,1942.8,0.9877249]
[1772989798521,0.25725,1943.7,1942.8,0.9877249]
[1772989798722,6.741,1943.6,1942.8,0.9877249]
[1772989801021,6.741,1943.5,1942.8,0.9877249]
[1772989801518,6.741,1943.4,1942.8,0.9877249]
[1772989807021,6.741,1943.4,1942.8,0.00653572]
[1772989807525,6.741,1943.4,1942.8,0.99016898]
[1772989809528,6.741,1943.4,1942.8,0.00653572]
[1772989813131,0.2573,1943.3,1942.3,0.98517941]
[1772989813426,6.741,1943.2,1942.3,0.98517941]
[1772989813626,6.741,1943.1,1942.3,0.98517941]
[1772989814028,6.741,1943.1,1942.3,0.98994276]
[1772989815126,6.742,1943.0,1942.3,0.98994276]
[1772989815727,6.742,1942.9,1942.3,0.98994276]
[1772989815928,6.74618877,1942.9,1942.3,0.98994276]
[1772989816329,0.2573,1943.3,1942.3,0.98994276]
[1772989816532,6.742,1943.2,1942.4,0.99277409]
[1772989817433,6.74752257,1943.2,1942.4,0.99277409]
[1772989818231,0.25733,1943.1,1942.4,0.99277409]
[1772989819330,0.25733,1943.1,1942.3,0.99773132]
[1772989819528,2.31441757,1943.1,1942.3,0.00103852]
[1772989819729,2.31441757,1943.1,1942.0,0.99182813]
[1772989820337,2.31441757,1943.1,1941.5,0.99182813]
[1772989820338,2.05708757,1942.8,1941.5,0.99182813]
[1772989820636,6.742,1942.7,1941.5,0.9964822]
[1772989821831,0.25739,1942.6,1941.5,0.9964822]
[1772989823132,0.25739,1942.6,1941.5,0.00465407]
[1772989823635,0.25739,1942.6,1941.5,0.99469696]
[1772989823932,6.742,1942.5,1941.5,0.99469696]
[1772989824332,6.743,1942.5,1941.5,0.99469696]
[1772989827736,0.25742,1942.4,1941.5,0.99469696]
[1772989828937,0.25742,1942.4,1941.5,0.00465407]
[1772989829238,0.25742,1942.4,1941.5,0.99450576]
[1772989829439,6.744,1942.3,1941.5,0.99450576]
[1772989831335,6.744,1942.3,1941.5,0.00465407]
[1772989831641,6.744,1942.3,1941.5,0.99597816]
[1772989833941,0.25745,1942.2,1941.5,0.99597816]
[1772989836040,0.25745,1942.2,1941.5,0.00465407]
[1772989836945,0.25745,1942.2,1941.5,0.99496172]
[1772989837141,6.745,1942.1,1941.5,0.99496172]
[1772989837537,0.25745,1942.2,1941.5,0.99496172]
[1772989837744,6.745,1942.1,1941.5,0.99496172]
[1772989840447,6.745,1942.0,1941.5,0.00465407]
[1772989840643,6.745,1942.0,1941.5,0.99394915]
[1772989840844,6.745,1942.0,1941.5,0.00465407]
[1772989841045,6.745,1942.0,1941.5,0.99394915]
[1772989841345,0.25745,1942.2,1941.5,0.99394915]
[1772989841346,6.745,1941.9,1941.5,0.99394915]
[1772989843044,6.745,1941.9,1941.5,0.99245069]
[1772989844942,6.745,1941.9,1941.5,0.00465407]
[1772989847147,6.745,1941.9,1941.5,0.98313403]
[1772989847346,6.745,1941.9,1941.5,0.00465407]
[1772989849752,0.25746,1942.1,1941.5,0.00465407]
[1772989849953,6.746,1942.0,1941.5,0.00465407]
[1772989857258,6.746,1941.9,1941.5,0.98137739]
[1772989857762,0.25746,1942.1,1941.5,0.98137739]
[1772989857963,6.746,1942.0,1941.5,0.98137739]
[1772989858257,0.25749,1941.9,1941.5,0.00465407]
[1772989861765,0.25749,1941.9,1941.1,0.96388519]
[1772989862263,0.25749,1941.9,1940.9,0.96388519]
[1772989862562,0.25761,1941.0,1940.5,0.96389657]
[1772989862763,6.746,1940.9,1940.5,0.96389657]
[1772989863661,6.75056262,1940.9,1940.5,0.96877606]
[1772989865159,0.00456262,1940.9,1940.5,0.96877606]
[1772989865366,6.21176689,1940.8,1940.5,0.96877606]
[1772989865666,5.80578432,1940.8,1940.5,0.96877606]
[1772989865861,4.86456864,1940.8,1940.5,0.96877606]
[1772989866062,3.81996081,1940.8,1940.5,0.96877606]
[1772989868164,6.747,1940.8,1940.5,0.96877606]
[1772989869163,0.80268616,1941.4,1940.5,0.96877606]
[1772989869366,6.747,1941.3,1940.5,0.96877606]
[1772989870070,6.75149001,1941.3,1940.5,0.96877606]
[1772989872269,0.80717617,1941.3,1940.5,0.96877606]
[1772989872564,6.75149001,1941.3,1940.5,0.96877606]
[1772989873269,0.00449001,1941.3,1940.5,0.96877606]
[1772989873564,0.80268616,1941.2,1940.6,0.78570657]
[1772989874765,6.747,1941.1,1940.6,0.78570657]
[1772989874974,0.80268616,1941.0,1940.6,0.78570657]
[1772989875270,0.80268616,1941.0,1940.5,0.00487949]
[1772989875673,0.80268616,1941.0,1940.5,0.79058606]
[1772989875973,6.747,1940.9,1940.5,0.79058606]
[1772989876373,0.80268616,1941.2,1940.5,0.79058606]